fUST/lending_fUST_20260123
["ID","MTS","AMOUNT","RATE_DAILY","PERIOD"]
[403083698,1769140123361,-500.0,0.00014399,2]
[403083699,1769140123389,-500.0,0.00014399,2]
[403083700,1769140123422,-552.28333173,0.00014399,2]
[403083701,1769140123452,-818.42064302,0.00014399,2]
[403083702,1769140123480,-500.0,0.00014399,2]
[403083704,1769140125503,-500.0,0.00014399,2]
[403083705,1769140125533,-818.42064302,0.00014399,2]
[403083706,1769140125561,-500.0,0.00014399,2]
[403083707,1769140125589,-552.28333173,0.00014399,2]
[403083708,1769140125616,-500.0,0.00014399,2]
[403083709,1769140125647,-379.42292127,0.00014399,2]
[403083710,1769140125676,-818.42064302,0.00014399,2]
[403083711,1769140125708,-500.0,0.00014399,2]
[403083712,1769140125736,-310.63159019,0.00014399,2]
[403083713,1769140125953,-241.65174154,0.00014399,2]
[403083714,1769140125983,-500.0,0.00014399,2]
[403083715,1769140126011,-500.0,0.00014399,2]
[403083716,1769140126039,-818.42064302,0.00014399,2]
[403083717,1769140126066,-552.28333173,0.00014399,2]
[403083718,1769140126093,-500.0,0.00014399,2]
[403083719,1769140126122,-500.0,0.00014399,2]
[403083720,1769140126149,-818.42064302,0.00014399,2]
[403083721,1769140126175,-552.28333173,0.00014399,2]
[403083722,1769140132153,-3637.21976821,0.00014299,2]
[403083723,1769140132182,-500.0,0.00014399,2]
[403083724,1769140132209,-818.42064302,0.00014399,2]
[403083725,1769140138440,-5000.0,0.00014181,2]
[403083726,1769140149938,500.0,0.00013699,2]
[403083727,1769140156776,500.0,0.00013273,2]
[403083728,1769140156807,500.0,0.00013821,2]
[403083729,1769140159540,500.0,0.00013273,2]
[403083730,1769140159689,5000.0,0.00013974,2]
[403083732,1769140210087,1000.0,0.00013821,2]
[403083733,1769140210200,500.0,0.00013273,2]
[403083769,1769140231653,-217.36664437,0.00014225,2]
[403083770,1769140231664,-150.0,0.00014225,2]
[403083771,1769140231674,-150.0,0.00014225,2]
[403083772,1769140231683,-102.48247667,0.00014225,2]
[403083773,1769140231709,-520.51752333,0.00014225,2]
[403083774,1769140231718,-510.08920513,0.00014247,2]
[403083775,1769140231727,-658.55583473,0.00014323,2]
[403083777,1769140231740,-541.44416527,0.00014323,2]
[403083778,1769140231749,-513.05201631,0.00014324,2]
[403083850,1769140237966,-3021.62025626,0.00014324,2]
[403083853,1769140237978,-102.54749564,0.00014324,2]
[403083855,1769140237987,-293.75345448,0.00014337,2]
[403083857,1769140237996,-130.58257757,0.0001435,2]
[403083859,1769140238008,-3506.63719064,0.0001435,2]
[403083861,1769140238017,-300.0,0.00014361,2]
[403083863,1769140238027,-300.0,0.00014361,2]
[403083865,1769140238036,-300.0,0.00014361,2]
[403083867,1769140238046,-150.0,0.00014362,2]
[403083869,1769140238056,-150.0,0.00014362,2]
[403083871,1769140238067,-482.88489579,0.00014368,2]
[403083873,1769140238077,-3637.21976821,0.00014375,2]
[403083875,1769140238086,-500.0,0.00014399,2]
[403083877,1769140238097,-50000.0,0.00014399,2]
[403083879,1769140238106,-500.0,0.00014399,2]
[403083881,1769140238116,-552.28333173,0.00014399,2]
[403083883,1769140238126,-500.0,0.00014399,2]
[403083885,1769140238136,-552.28333173,0.00014399,2]
[403083887,1769140238145,-552.28333173,0.00014399,2]
[403083889,1769140238155,-500.0,0.00014399,2]
[403083891,1769140238165,-552.28333173,0.00014399,2]
[403083893,1769140238174,-500.0,0.00014399,2]
[403083895,1769140238183,-552.28333173,0.00014399,2]
[403083897,1769140238192,-500.0,0.00014399,2]
[403083899,1769140238202,-552.28333173,0.00014399,2]
[403083901,1769140238212,-552.28333173,0.00014399,2]
[403083903,1769140238221,-500.0,0.00014399,2]
[403083905,1769140238231,-552.28333173,0.00014399,2]
[403083907,1769140238240,-500.0,0.00014399,2]
[403083909,1769140238250,-552.28333173,0.00014399,2]
[403083911,1769140238259,-500.0,0.00014399,2]
[403083913,1769140238268,-552.28333173,0.00014399,2]
[403083915,1769140238278,-552.28333173,0.00014399,2]
[403083917,1769140238287,-500.0,0.00014399,2]
[403083919,1769140238297,-552.28333173,0.00014399,2]
[403083921,1769140238306,-500.0,0.00014399,2]
[403083923,1769140238315,-552.28333173,0.00014399,2]
[403083925,1769140238324,-500.0,0.00014399,2]
[403083927,1769140238333,-552.28333173,0.00014399,2]
[403083929,1769140238343,-500.0,0.00014399,2]
[403083931,1769140238352,-552.28333173,0.00014399,2]
[403083933,1769140238362,-500.0,0.00014399,2]
[403083935,1769140238371,-552.28333173,0.00014399,2]
[403083937,1769140238380,-552.28333173,0.00014399,2]
[403083939,1769140238389,-500.0,0.00014399,2]
[403083942,1769140238398,-552.28333173,0.00014399,2]
[403083943,1769140238408,-500.0,0.00014399,2]
[403083945,1769140238417,-552.28333173,0.00014399,2]
[403083947,1769140238426,-500.0,0.00014399,2]
[403083949,1769140238435,-552.28333173,0.00014399,2]
[403083951,1769140238444,-552.28333173,0.00014399,2]
[403083953,1769140238453,-500.0,0.00014399,2]
[403083955,1769140238462,-552.28333173,0.00014399,2]
[403083957,1769140238471,-500.0,0.00014399,2]
[403083959,1769140238480,-552.28333173,0.00014399,2]
[403083961,1769140238489,-545.92698267,0.00014399,2]
[403083963,1769140238498,-552.28333173,0.00014399,2]
[403083965,1769140238507,-500.0,0.00014399,2]
[403083967,1769140238517,-500.0,0.00014399,2]
[403083969,1769140238526,-500.0,0.00014399,2]
[403083971,1769140238535,-500.0,0.00014399,2]
[403083973,1769140238544,-500.0,0.00014399,2]
[403083975,1769140238553,-500.0,0.00014399,2]
[403083977,1769140238562,-552.28333173,0.00014399,2]
[403083979,1769140238571,-552.28333173,0.00014399,2]
[403083981,1769140238580,-500.0,0.00014399,2]
[403083983,1769140238589,-552.28333173,0.00014399,2]
[403083985,1769140238598,-500.0,0.00014399,2]
[403083987,1769140238607,-552.28333173,0.00014399,2]
[403083989,1769140238616,-500.0,0.00014399,2]
[403083991,1769140238625,-552.28333173,0.00014399,2]
[403083993,1769140238635,-552.28333173,0.00014399,2]
[403083995,1769140238643,-500.0,0.00014399,2]
[403083997,1769140238652,-552.28333173,0.00014399,2]
[403083999,1769140238663,-500.0,0.00014399,2]
[403084000,1769140238673,-552.28333173,0.00014399,2]
[403084002,1769140238682,-500.0,0.00014399,2]
[403084004,1769140238694,-552.28333173,0.00014399,2]
[403084006,1769140238703,-552.28333173,0.00014399,2]
[403084008,1769140238712,-500.0,0.00014399,2]
[403084010,1769140238721,-552.28333173,0.00014399,2]
[403084012,1769140238730,-500.0,0.00014399,2]
[403084014,1769140238742,-552.28333173,0.00014399,2]
[403084016,1769140238751,-500.0,0.00014399,2]
[403084018,1769140238760,-552.28333173,0.00014399,2]
[403084020,1769140238769,-552.28333173,0.00014399,2]
[403084022,1769140238778,-552.28333173,0.00014399,2]
[403084024,1769140238787,-552.28333173,0.00014399,2]
[403084026,1769140238797,-552.28333173,0.00014399,2]
[403084028,1769140238806,-500.0,0.00014399,2]
[403084030,1769140238815,-552.28333173,0.00014399,2]
[403084032,1769140238825,-552.28333173,0.00014399,2]
[403084034,1769140238834,-552.28333173,0.00014399,2]
[403084036,1769140238843,-552.28333173,0.00014399,2]
[403084038,1769140238853,-552.28333173,0.00014399,2]
[403084040,1769140238862,-552.28333173,0.00014399,2]
[403084042,1769140238871,-552.28333173,0.00014399,2]
[403084044,1769140238880,-552.28333173,0.00014399,2]
[403084046,1769140238890,-552.28333173,0.00014399,2]
[403084048,1769140238899,-552.28333173,0.00014399,2]
[403084050,1769140238908,-552.28333173,0.00014399,2]
[403084052,1769140238917,-552.28333173,0.00014399,2]
[403084054,1769140238928,-552.28333173,0.00014399,2]
[403084056,1769140238938,-552.28333173,0.00014399,2]
[403084058,1769140238947,-552.28333173,0.00014399,2]
[403084060,1769140238956,-552.28333173,0.00014399,2]
[403084062,1769140238966,-552.28333173,0.00014399,2]
[403084064,1769140238976,-1058.94325779,0.00014399,2]
[403084066,1769140238985,-1058.94325779,0.00014399,2]
[403084068,1769140238994,-1058.94325779,0.00014399,2]
[403084070,1769140239003,-512.41514547,0.00014399,2]
[403084072,1769140239013,-1058.94325779,0.00014399,2]
[403084074,1769140239022,-512.41514547,0.00014399,2]
[403084076,1769140239032,-1058.94325779,0.00014399,2]
[403084078,1769140239041,-512.41514547,0.00014399,2]
[403084080,1769140239050,-1058.94325779,0.00014399,2]
[403084082,1769140239060,-512.41514547,0.00014399,2]
[403084084,1769140239069,-1058.94325779,0.00014399,2]
[403084086,1769140239078,-512.41514547,0.00014399,2]
[403084088,1769140239088,-1058.94325779,0.00014399,2]
[403084090,1769140239097,-512.41514547,0.00014399,2]
[403084092,1769140239106,-1058.94325779,0.00014399,2]
[403084094,1769140239115,-512.41514547,0.00014399,2]
[403084096,1769140239125,-512.41514547,0.00014399,2]
[403084098,1769140239134,-1058.94325779,0.00014399,2]
[403084100,1769140239143,-1058.94325779,0.00014399,2]
[403084102,1769140239152,-1058.94325779,0.00014399,2]
[403084104,1769140239161,-1058.94325779,0.00014399,2]
[403084105,1769140239170,-1058.94325779,0.00014399,2]
[403084107,1769140239179,-3202.51555963,0.00014399,2]
[403084109,1769140239188,-3208.91,0.00014399,2]
[403084111,1769140239197,-151.0,0.00014399,2]
[403084113,1769140239207,-225.47,0.00014399,2]
[403084115,1769140239216,-160.96163557,0.000144,2]
[403084117,1769140239225,-5000.0,0.000144,2]
[403084118,1769140239234,-3637.21976821,0.000144,2]
[403084120,1769140239243,-500.0,0.0001448,2]
[403084122,1769140239251,-188.3138107,0.0001448,2]
[403084124,1769140239260,-500.0,0.0001448,2]
[403084126,1769140239269,-500.0,0.0001448,2]
[403084128,1769140239278,-500.0,0.0001448,2]
[403084130,1769140239287,-531.33639658,0.0001448,2]
[403084132,1769140239295,-3208.91,0.00014498,2]
[403084134,1769140239304,-3208.91,0.00014498,2]
[403084136,1769140239314,-3208.91,0.00014498,2]
[403084137,1769140239323,-1001.97160587,0.00014499,2]
[403084139,1769140239332,-500.0,0.00014499,2]
[403084141,1769140239341,-500.0,0.00014499,2]
[403084143,1769140239350,-500.0,0.00014499,2]
[403084145,1769140239360,-165.01687446,0.00014499,2]
[403084147,1769140239368,-3208.91,0.00014499,2]
[403084149,1769140239377,-3208.91,0.00014499,2]
[403084151,1769140239386,-3208.91,0.00014499,2]
[403084153,1769140239395,-3208.91,0.00014499,2]
[403084154,1769140239404,-3208.91,0.00014499,2]
[403084156,1769140239413,-3208.91,0.00014499,2]
[403084158,1769140239422,-3208.91,0.00014499,2]
[403084160,1769140239433,-3208.91,0.00014499,2]
[403084162,1769140239442,-3208.91,0.00014499,2]
[403084164,1769140239451,-3208.91,0.00014499,2]
[403084166,1769140239460,-3208.91,0.00014499,2]
[403084168,1769140239469,-3208.91,0.00014499,2]
[403084170,1769140239478,-3208.91,0.00014499,2]
[403084172,1769140239487,-3208.91,0.00014499,2]
[403084174,1769140239495,-3208.91,0.00014499,2]
[403084175,1769140239505,-3208.91,0.00014499,2]
[403084177,1769140239515,-3208.91,0.00014499,2]
[403084179,1769140239523,-3208.91,0.00014499,2]
[403084181,1769140239532,-3208.91,0.00014499,2]
[403084183,1769140239542,-3209.12393389,0.00014499,2]
[403084185,1769140239550,-198.689353,0.00014499,2]
[403084187,1769140239559,-151.946674,0.00014499,2]
[403084189,1769140239568,-688044.45648176,0.000145,2]
[403084191,1769140239577,-160.0,0.000145,3]
[403084192,1769140239586,-1159.18,0.000145,2]
[403084194,1769140239595,-1159.18,0.000145,2]
[403084196,1769140239604,-1159.18,0.000145,2]
[403084198,1769140239613,-1159.18,0.000145,2]
[403084200,1769140239622,-1159.18,0.000145,2]
[403084202,1769140239631,-1159.18,0.000145,2]
[403084203,1769140239640,-1159.18,0.000145,2]
[403084205,1769140239649,-1159.18,0.000145,2]
[403084229,1769140239883,-1159.18,0.000145,2]
[403084231,1769140239892,-1159.18,0.000145,2]
[403084233,1769140239901,-1159.18,0.000145,2]
[403084235,1769140239911,-1159.18,0.000145,2]
[403084237,1769140239920,-1159.18,0.000145,2]
[403084239,1769140239929,-1159.18,0.000145,2]
[403084241,1769140239938,-1159.18,0.000145,2]
[403084243,1769140239948,-1159.18,0.000145,2]
[403084245,1769140239957,-1159.18,0.000145,2]
[403084246,1769140239966,-1159.18,0.000145,2]
[403084248,1769140239975,-1159.18,0.000145,2]
[403084250,1769140239984,-1159.18,0.000145,2]
[403084252,1769140239993,-1159.18,0.000145,2]
[403084254,1769140240002,-1159.18,0.000145,2]
[403084256,1769140240011,-1159.18,0.000145,2]
[403084258,1769140240020,-1159.18,0.000145,2]
[403084259,1769140240029,-1159.18,0.000145,2]
[403084261,1769140240038,-1159.18,0.000145,2]
[403084263,1769140240047,-1159.18,0.000145,2]
[403084265,1769140240056,-1159.18,0.000145,2]
[403084267,1769140240066,-1159.18,0.000145,2]
[403084269,1769140240077,-1159.18,0.000145,2]
[403084271,1769140240087,-1159.18,0.000145,2]
[403084273,1769140240096,-1159.18,0.000145,2]
[403084275,1769140240106,-1159.18,0.000145,2]
[403084277,1769140240115,-1159.18,0.000145,2]
[403084279,1769140240124,-1159.18,0.000145,2]
[403084281,1769140240133,-1159.18,0.000145,2]
[403084282,1769140240143,-1159.18,0.000145,2]
[403084284,1769140240153,-1615.92,0.000145,2]
[403084286,1769140240162,-202.72826128,0.00014519,2]
[403084288,1769140240171,-500.0,0.00014573,2]
[403084290,1769140240180,-151.0,0.000146,2]
[403084292,1769140240189,-151.0,0.000146,2]
[403084294,1769140240198,-500.0,0.00014626,2]
[403084296,1769140240208,-152.77828667,0.00014626,2]
[403084299,1769140240217,-500.0,0.00014626,2]
[403084300,1769140240226,-781.35400367,0.00014634,2]
[403084302,1769140240235,-151.0,0.00014634,2]
[403084304,1769140240246,-2230.315306,0.00014634,2]
[403084306,1769140240255,-156.587,0.00014634,2]
[403084308,1769140240264,-152.85078506,0.00014634,2]
[403084310,1769140240273,-462.76843359,0.00014636,2]
[403084312,1769140240282,-500.0,0.00014636,2]
[403084314,1769140240292,-500.0,0.00014636,2]
[403084316,1769140240301,-500.0,0.00014673,2]
[403084318,1769140240310,-225.47,0.00014673,2]
[403084320,1769140240319,-7272.86004425,0.00014695,2]
[403084321,1769140240328,-151.0,0.000147,2]
[403084323,1769140240338,-151.0,0.000147,2]
[403084324,1769140240347,-151.0,0.000147,2]
[403084325,1769140240356,-305.3567919,0.000147,2]
[403084326,1769140240364,-185.1655205,0.000147,2]
[403084327,1769140240373,-153.0,0.000147,2]
[403084328,1769140240383,-603.1747486,0.000147,2]
[403084329,1769140240392,-378.2516574,0.000147,2]
[403084330,1769140240401,-185.1655205,0.000147,2]
[403084331,1769140240411,-153.0,0.000147,2]
[403084333,1769140240420,-305.3567919,0.000147,2]
[403084334,1769140240429,-603.1747486,0.000147,2]
[403084336,1769140240438,-500.0,0.00014763,2]
[403084338,1769140240448,-500.0,0.00014763,2]
[403084339,1769140240458,-500.0,0.00014773,2]
[403084341,1769140240467,-500.0,0.00014773,2]
[403084343,1769140240476,-151.0,0.00014782,2]
[403084345,1769140240486,-168.3888056,0.00014782,2]
[403084346,1769140240495,-250.0,0.00014782,2]
[403084348,1769140240504,-557.5788265,0.00014782,2]
[403084349,1769140240512,-151.0,0.00014782,2]
[403084350,1769140240521,-250.0,0.00014782,2]
[403084351,1769140240530,-152.99083282,0.00014782,2]
[403084352,1769140240539,-250.0,0.00014782,2]
[403084353,1769140240547,-250.0,0.00014782,2]
[403084354,1769140240557,-250.0,0.00014782,2]
[403084355,1769140240566,-250.0,0.00014782,2]
[403084356,1769140240575,-250.0,0.00014782,2]
[403084357,1769140240585,-254.04553711,0.00014782,2]
[403084358,1769140240594,-461.67526834,0.00014782,2]
[403084359,1769140240603,-500.0,0.00014782,2]
[403084360,1769140240612,-500.0,0.00014782,2]
[403084361,1769140240621,-500.0,0.00014782,2]
[403084362,1769140240630,-349.23401035,0.00014782,2]
[403084363,1769140240638,-168.3888056,0.00014782,2]
[403084364,1769140240648,-174.61919141,0.00014782,2]
[403084365,1769140240657,-181.08010149,0.00014782,2]
[403084366,1769140240671,-187.78006525,0.00014782,2]
[403084367,1769140240680,-194.72792766,0.00014782,2]
[403084368,1769140240690,-201.93286099,0.00014782,2]
[403084369,1769140240699,-209.40437684,0.00014782,2]
[403084370,1769140240709,-217.15233878,0.00014782,2]
[403084371,1769140240717,-225.18697532,0.00014782,2]
[403084372,1769140240724,-233.51889341,0.00014782,2]
[403084373,1769140240735,-213.56831467,0.00014782,2]
[403084374,1769140240743,-1000000.0,0.00014791,2]
[403084375,1769140240753,-3197.7617913,0.00014795,2]
[403084376,1769140240762,-6099.0560829,0.000148,2]
[403084377,1769140240771,-151.0,0.000148,2]
[403084378,1769140240780,-610.5056746,0.000148,2]
[403084379,1769140240790,-185.1655205,0.000148,2]
[403084380,1769140240799,-194.5256404,0.000148,2]
[403084381,1769140240808,-603.1747486,0.000148,2]
[403084382,1769140240818,-153.0,0.000148,2]
[403084383,1769140240831,-185.1655205,0.000148,2]
[403084384,1769140240840,-184.3965287,0.000148,2]
[403084385,1769140240849,-603.1747486,0.000148,2]
[403084386,1769140240858,-153.0,0.000148,2]
[403084387,1769140240867,-305.3567919,0.000148,2]
[403084388,1769140240876,-301.633,0.0001489,2]
[403084389,1769140240885,-500.0,0.00014899,2]
[403084390,1769140240894,-500.0,0.00014899,2]
[403084391,1769140240903,-500.0,0.00014899,2]
[403084392,1769140240912,-500.0,0.00014899,2]
[403084393,1769140240921,-500.0,0.00014899,2]
[403084394,1769140240929,-500.0,0.00014899,2]
[403084395,1769140240938,-500.0,0.00014899,2]
[403084396,1769140240947,-500.0,0.00014899,2]
[403084397,1769140240955,-500.0,0.00014899,2]
[403084398,1769140240964,-396.26476891,0.00014899,2]
[403084399,1769140240973,-699.82,0.00014899,2]
[403084400,1769140240982,-699.82,0.00014899,2]
[403084401,1769140240990,-699.82,0.00014899,2]
[403084402,1769140240999,-699.82,0.00014899,2]
[403084403,1769140241008,-699.82,0.00014899,2]
[403084404,1769140241017,-699.82,0.00014899,2]
[403084405,1769140241026,-699.82,0.00014899,2]
[403084406,1769140241034,-699.82,0.00014899,2]
[403084407,1769140241044,-699.82,0.00014899,2]
[403084408,1769140241052,-699.82,0.00014899,2]
[403084409,1769140241061,-699.82,0.00014899,2]
[403084410,1769140241071,-699.82,0.00014899,2]
[403084411,1769140241080,-699.82,0.00014899,2]
[403084412,1769140241088,-699.82,0.00014899,2]
[403084413,1769140241097,-699.82,0.00014899,2]
[403084414,1769140241106,-699.82,0.00014899,2]
[403084415,1769140241115,-699.82,0.00014899,2]
[403084416,1769140241123,-699.82,0.00014899,2]
[403084417,1769140241132,-699.82,0.00014899,2]
[403084418,1769140241141,-699.82,0.00014899,2]
[403084419,1769140241149,-699.82,0.00014899,2]
[403084420,1769140241158,-699.82,0.00014899,2]
[403084421,1769140241167,-699.82,0.00014899,2]
[403084422,1769140241177,-699.91061321,0.00014899,2]
[403084423,1769140241186,-500.0,0.00014899,2]
[403084424,1769140241194,-500.0,0.00014899,2]
[403084425,1769140241203,-500.0,0.00014899,2]
[403084426,1769140241212,-500.0,0.00014899,2]
[403084427,1769140241221,-500.0,0.00014899,2]
[403084428,1769140241230,-500.0,0.00014899,2]
[403084429,1769140241239,-500.0,0.00014899,2]
[403084430,1769140241247,-500.0,0.00014899,2]
[403084431,1769140241257,-500.0,0.00014899,2]
[403084432,1769140241266,-500.0,0.00014899,2]
[403084433,1769140241275,-500.0,0.00014899,2]
[403084434,1769140241284,-500.0,0.00014899,2]
[403084435,1769140241293,-500.0,0.00014899,2]
[403084436,1769140241302,-500.0,0.00014899,2]
[403084437,1769140241311,-500.0,0.00014899,2]
[403084439,1769140241320,-500.0,0.00014899,2]
[403084440,1769140241329,-280.34036431,0.00014899,2]
[403084441,1769140241338,-500.0,0.000149,2]
[403084443,1769140241347,-500.0,0.000149,2]
[403084444,1769140241359,-305.3567919,0.000149,2]
[403084445,1769140241366,-310.2948031,0.000149,2]
[403084446,1769140241375,-218.0066775,0.000149,2]
[403084447,1769140241383,-243.6857964,0.000149,2]
[403084448,1769140241391,-385.320873,0.000149,2]
[403084449,1769140241400,-615.3850987,0.000149,2]
[403084450,1769140241410,-500.0,0.0001491,2]
[403084451,1769140241419,-500.0,0.0001491,2]
[403084452,1769140241428,-500.0,0.00014926,2]
[403084453,1769140241437,-2000.0,0.00014946,2]
[403084454,1769140241446,-2000.0,0.00014946,2]
[403084455,1769140241455,-2000.0,0.00014946,2]
[403084456,1769140241464,-500.0,0.00014947,2]
[403084457,1769140241473,-225.47,0.00014947,2]
[403084458,1769140241482,-379.0,0.00014964,2]
[403084459,1769140241491,-504726.48126585,0.00015,2]
[403084460,1769140241500,-312.35536877,0.00015,2]
[403084461,1769140241510,-151.0,0.00015,2]
[403084462,1769140241519,-962.98800711,0.00015002,5]
[403084463,1769140241527,-500.0,0.00015037,2]
[403084464,1769140241536,-500.0,0.00015037,2]
[403084465,1769140241545,-500.0,0.00015047,2]
[403084466,1769140241554,-500.0,0.00015047,2]
[403084467,1769140241563,-231.09092124,0.00015047,2]
[403084468,1769140241572,-500.0,0.00015063,2]
[403084469,1769140241581,-160.0,0.00015063,2]
[403084470,1769140241590,-160.0,0.00015063,2]
[403084471,1769140241599,-180.0,0.00015063,2]
[403084472,1769140241608,-364.9108703,0.00015066,2]
[403084473,1769140241617,-185.841829,0.00015068,2]
[403084474,1769140241626,-3294.8406117,0.00015087,2]
[403084475,1769140241635,-305.3567919,0.000151,2]
[403084476,1769140241644,-598.2606028,0.000151,2]
[403084477,1769140241653,-305.3567919,0.000151,2]
[403084478,1769140241664,-305.3567919,0.000151,2]
[403084479,1769140241673,-381.26461553,0.00015101,3]
[403084480,1769140241682,-591.34313726,0.00015101,3]
[403084481,1769140241691,-379.0,0.00015149,2]
[403084482,1769140241700,-500.0,0.00015174,2]
[403084483,1769140241710,-500.0,0.00015174,2]
[403084484,1769140241719,-2312.83697232,0.00015182,2]
[403084485,1769140241728,-500.0,0.00015184,2]
[403084486,1769140241737,-500.0,0.00015184,2]
[403084487,1769140241746,-515.79429204,0.000152,2]
[403084488,1769140241755,-201.15862656,0.000152,2]
[403084489,1769140241763,-305.3567919,0.000152,2]
[403084490,1769140241772,-185.1655205,0.000152,2]
[403084491,1769140241781,-603.1747486,0.000152,2]
[403084492,1769140241790,-185.1655205,0.000152,2]
[403084493,1769140241799,-305.3567919,0.000152,2]
[403084494,1769140241807,-603.1747486,0.000152,2]
[403084495,1769140241818,-305.3567919,0.000152,2]
[403084496,1769140241826,-603.1747486,0.000152,2]
[403084497,1769140241835,-500.0,0.00015221,2]
[403084498,1769140241844,-225.47,0.00015221,2]
[403084499,1769140241853,-379.0,0.00015253,2]
[403084500,1769140241863,-151.0,0.000153,2]
[403084501,1769140241872,-500.0,0.00015311,2]
[403084502,1769140241882,-379.0,0.00015312,2]
[403084503,1769140241891,-448.01328296,0.00015321,2]
[403084504,1769140241901,-540.85969556,0.00015321,2]
[403084505,1769140241910,-379.0,0.00015326,2]
[403084506,1769140241919,-160.09963871,0.0001533,2]
[403084507,1769140241928,-578.20924308,0.0001533,2]
[403084508,1769140241937,-478.75725327,0.0001533,2]
[403084509,1769140241946,-307.47090845,0.0001538,2]
[403084510,1769140241955,-615.27405709,0.0001538,2]
[403084511,1769140241964,-282.90616639,0.0001538,2]
[403084512,1769140241973,-509.2310995,0.0001538,2]
[403084513,1769140241983,-905.29973244,0.0001538,2]
[403084514,1769140241992,-326.6772669,0.0001538,2]
[403084515,1769140242001,-588.01908042,0.0001538,2]
[403084516,1769140242010,-419.44021636,0.00015381,2]
[403084517,1769140242019,-754.99238946,0.00015381,2]
[403084518,1769140242028,-238.21006936,0.000154,2]
[403084519,1769140242037,-150.8020495,0.000154,2]
[403084520,1769140242047,-258.9876114,0.000154,2]
[403084521,1769140242057,-187.4437198,0.000154,2]
[403084522,1769140242066,-263.0,0.00015428,2]
[403084523,1769140242075,-500.0,0.00015448,2]
[403084524,1769140242084,-372.05,0.00015472,2]
[403084525,1769140242094,-3305.31432143,0.00015474,2]
[403084526,1769140242102,-166.0,0.00015485,2]
[403084527,1769140242111,-166.0,0.00015485,2]
[403084528,1769140242120,-166.0,0.00015485,2]
[403084529,1769140242129,-166.0,0.00015485,2]
[403084530,1769140242138,-166.0,0.00015485,2]
[403084531,1769140242147,-172.0,0.00015485,2]
[403084532,1769140242156,-500.0,0.00015495,2]
[403084533,1769140242166,-225.48,0.00015495,2]
[403084534,1769140242174,-263.0,0.00015503,2]
[403084535,1769140242183,-379.0,0.00015529,2]
[403084536,1769140242192,-380.90128866,0.00015543,2]
[403084537,1769140242201,-379.0,0.00015557,2]
[403084538,1769140242210,-500.0,0.00015585,2]
[403084539,1769140242220,-1045.36725409,0.00015589,2]
[403084540,1769140242229,-263.0,0.00015598,2]
[403084541,1769140242238,-348.0,0.00015605,2]
[403084542,1769140242247,-348.0,0.00015605,2]
[403084543,1769140242256,-348.0,0.00015605,2]
[403084544,1769140242265,-351.9505441,0.00015605,2]
[403084545,1769140242274,-166.0,0.00015605,2]
[403084546,1769140242283,-166.0,0.00015605,2]
[403084547,1769140242292,-348.0,0.00015605,2]
[403084548,1769140242301,-166.0,0.00015605,2]
[403084549,1769140242310,-348.0,0.00015605,2]
[403084550,1769140242319,-166.0,0.00015605,2]
[403084551,1769140242328,-164.0,0.00015605,2]
[403084552,1769140242338,-166.0,0.00015605,2]
[403084553,1769140242347,-348.0,0.00015605,2]
[403084554,1769140242356,-172.0,0.00015605,2]
[403084555,1769140242365,-269.99680868,0.00015605,2]
[403084557,1769140242374,-348.0,0.00015605,2]
[403084558,1769140242383,-348.0,0.00015605,2]